fUST/lending_fUST_20250816
["ID","MTS","AMOUNT","RATE_DAILY","PERIOD"]
[379511535,1755317818265,-151.0,0.00022739,7]
[379511536,1755317818286,-151.0,0.00022739,7]
[379511537,1755317818308,-151.0,0.00022739,7]
[379511538,1755317818329,-480.0,0.00022739,3]
[379511539,1755317818351,-480.0,0.00022739,3]
[379511540,1755317818373,-480.0,0.00022739,3]
[379511541,1755317818395,-480.0,0.00022739,3]
[379511542,1755317818418,-151.0,0.00022739,7]
[379511543,1755317818439,-206.78237363,0.00022739,3]
[379511544,1755317818461,-480.0,0.00022739,3]
[379511545,1755317818483,-480.0,0.00022739,3]
[379511546,1755317818510,-480.0,0.00022739,3]
[379511547,1755317818533,-151.0,0.00022739,7]
[379511548,1755317818555,-400.0,0.00022739,3]
[379511549,1755317818582,-480.0,0.00022739,3]
[379511550,1755317818603,-337.16040648,0.00022739,3]
[379511551,1755317818625,-151.0,0.00022739,7]
[379511552,1755317818645,-151.0,0.00022739,7]
[379511553,1755317818666,-480.0,0.00022739,3]
[379511554,1755317818687,-480.0,0.00022739,3]
[379511555,1755317818707,-470.07464442,0.00022739,3]
[379511556,1755317818728,-480.0,0.00022739,3]
[379511557,1755317818748,-400.0,0.00022739,3]
[379511558,1755317818770,-526.61470701,0.00022739,3]
[379511559,1755317818790,-480.0,0.00022739,3]
[379511560,1755317818811,-456.31131669,0.00022739,3]
[379511561,1755317818831,-480.0,0.00022739,3]
[379511562,1755317818851,-480.0,0.00022739,3]
[379511563,1755317818872,-480.0,0.00022739,3]
[379511564,1755317818893,-480.0,0.00022739,3]
[379511565,1755317818914,-400.0,0.00022739,3]
[379511566,1755317818935,-480.0,0.00022739,3]
[379511567,1755317818957,-480.0,0.00022739,3]
[379511568,1755317818979,-480.0,0.00022739,3]
[379511569,1755317819000,-480.0,0.00022739,3]
[379511570,1755317819023,-480.0,0.00022739,3]
[379511571,1755317819047,-400.0,0.00022739,3]
[379511572,1755317819070,-307.64631675,0.00022739,3]
[379511573,1755317819092,-219.85631644,0.00022739,3]
[379511574,1755317819114,-400.0,0.00022739,3]
[379511575,1755317819136,-480.0,0.00022739,3]
[379511576,1755317819159,-2470.79,0.00022739,3]
[379511577,1755317819181,-480.0,0.00022739,3]
[379511578,1755317819204,-480.0,0.00022739,3]
[379511579,1755317819227,-667.84,0.00022739,3]
[379511580,1755317819249,-480.0,0.00022739,3]
[379511581,1755317819272,-480.0,0.00022739,3]
[379511582,1755317819294,-480.0,0.00022739,3]
[379511583,1755317819316,-480.0,0.00022739,3]
[379511584,1755317819338,-480.0,0.00022739,3]
[379511585,1755317819360,-400.0,0.00022739,3]
[379511586,1755317819384,-298.05894706,0.00022739,3]
[379511587,1755317819408,-480.0,0.00022739,3]
[379511588,1755317819430,-400.0,0.00022739,3]
[379511589,1755317819453,-400.0,0.00022739,3]
[379511590,1755317819478,-523.51781778,0.00022739,3]
[379511591,1755317819504,-312.69118259,0.00022739,3]
[379511592,1755317819527,-480.0,0.00022739,3]
[379511593,1755317819548,-400.0,0.00022739,3]
[379511594,1755317819572,-480.0,0.00022739,3]
[379511595,1755317819597,-480.0,0.00022739,3]
[379511596,1755317819620,-480.0,0.00022739,3]
[379511597,1755317819643,-480.0,0.00022739,3]
[379511598,1755317819665,-480.0,0.00022739,3]
[379511599,1755317819687,-480.0,0.00022739,3]
[379511600,1755317819710,-480.0,0.00022739,3]
[379511601,1755317819732,-480.0,0.00022739,3]
[379511602,1755317819754,-480.0,0.00022739,3]
[379511603,1755317819776,-480.0,0.00022739,3]
[379511604,1755317819799,-480.0,0.00022739,3]
[379511605,1755317819825,-400.0,0.00022739,3]
[379511606,1755317819849,-480.0,0.00022739,3]
[379511607,1755317819872,-480.0,0.00022739,3]
[379511608,1755317819896,-480.0,0.00022739,3]
[379511609,1755317819918,-480.0,0.00022739,3]
[379511610,1755317819940,-480.0,0.00022739,3]
[379511611,1755317819965,-412.78591132,0.00022739,3]
[379511612,1755317819988,-375.87,0.00022739,3]
[379511613,1755317820011,-377.55854894,0.00022739,3]
[379511614,1755317820034,-500.0,0.00022739,3]
[379511615,1755317820056,-480.0,0.00022739,3]
[379511616,1755317820079,-480.0,0.00022739,3]
[379511617,1755317820102,-480.0,0.00022739,3]
[379511618,1755317820126,-480.0,0.00022739,3]
[379511619,1755317820148,-66.89747936,0.00022739,7]
[379511648,1755318402934,202.311828,0.00013699,2]
[379511655,1755318430089,-592.06622684,0.0001919,6]
[379511657,1755318444085,-164.64713806,0.0001919,6]
[379511658,1755318448116,-337.97125309,0.0001919,6]
[379511659,1755318450086,-478.85783774,0.0001919,6]
[379511667,1755318561106,-1144.37421739,0.0001919,6]
[379511668,1755318570115,-2282.08332688,0.0001919,6]
[379511669,1755318570136,-142.64645588,0.00019384,2]
[379511684,1755318632677,-1184.55,0.0001919,2]
[379511686,1755318632689,-3365.46,0.0001919,2]
[379511688,1755318632700,-449.99,0.0001919,2]
[379511689,1755318632710,-65.81117728,0.00019384,2]
[379511690,1755318632721,-744.784146,0.00019893,2]
[379511691,1755318632730,-741.19130033,0.000199,2]
[379511692,1755318632739,-150.0,0.00020153,2]
[379511693,1755318632750,-202.311828,0.00020187,2]
[379511694,1755318632759,-1200.0,0.00020243,2]
[379511695,1755318632768,-300.0,0.00020244,2]
[379511696,1755318632778,-609.45933799,0.00020245,2]
[379511792,1755318638687,-5000.0,0.00020042,2]
[379511793,1755318638697,-508.86943147,0.00020245,2]
[379511794,1755318638847,-1568.44238074,0.00020245,2]
[379511795,1755318638857,-79.94167314,0.00020265,2]
[379511809,1755318640631,-120.44491306,0.00020265,2]
[379511810,1755318640642,-741.19130019,0.00020408,2]
[379511811,1755318640652,-741.19130019,0.00020916,2]
[379511812,1755318640661,-200.0,0.00021256,20]
[379511813,1755318640670,-200.0,0.00021256,20]
[379511814,1755318640679,-200.0,0.00021256,20]
[379511815,1755318640713,-200.0,0.00021256,20]
[379511816,1755318640722,-741.19130019,0.00021424,2]
[379511817,1755318640731,-219.6609582,0.00021807,2]
[379511818,1755318640740,-362.76109105,0.00021807,2]
[379511819,1755318640749,-163.0,0.00021807,10]
[379511820,1755318640758,-815.02,0.00021807,10]
[379511821,1755318640767,-229999.37427576,0.00021817,2]
[379512110,1755318644181,-256.2,0.00021817,2]
[379512129,1755318651571,-1708.55518027,0.00021817,2]
[379512130,1755318651583,-4054.00800407,0.00021817,2]
[379512131,1755318651594,-8008.03979879,0.00021817,2]
[379512132,1755318651608,-7132.82027565,0.00021817,2]
[379512133,1755318651619,-31039.52381049,0.00021817,2]
[379512134,1755318651630,-300.51875237,0.00021817,2]
[379512135,1755318651641,-7072.0104869,0.00021817,2]
[379512136,1755318651650,-868.22,0.00021907,3]
[379512137,1755318651659,-500.0,0.00021916,2]
[379512138,1755318651668,-460.0,0.00021917,3]
[379512139,1755318651677,-460.0,0.00021917,3]
[379512140,1755318651686,-460.0,0.00021917,3]
[379512141,1755318651695,-460.0,0.00021917,3]
[379512142,1755318651704,-480.0,0.00021917,3]
[379512143,1755318651713,-480.0,0.00021917,3]
[379512144,1755318651722,-460.0,0.00021917,3]
[379512145,1755318651731,-460.0,0.00021917,3]
[379512146,1755318651741,-73.00069316,0.00021917,3]
[379512147,1755318651803,-386.99930684,0.00021917,3]
[379512148,1755318651812,-42.35617585,0.00021917,3]
[379512203,1755319320358,227.115019,0.00013699,2]
[379512359,1755319635116,-1008.85427844,0.00019406,2]
[379512360,1755319641077,-634.61198257,0.00019406,2]
[379512362,1755319652113,-375.72277239,0.00019406,2]
[379512370,1755319751118,-2980.8109666,0.00019406,2]
[379512371,1755319751138,-74.5644334,0.000197,2]
[379512405,1755319831771,-5000.0,0.00019503,2]
[379512406,1755319831780,-78.05021004,0.000197,2]
[379512407,1755319831789,-187.46784793,0.000198,2]
[379512408,1755319831798,-187.46784789,0.00019815,2]
[379512409,1755319831807,-187.46784789,0.0001983,2]
[379512410,1755319831816,-187.46784789,0.00019844,2]
[379512411,1755319831826,-187.46784789,0.00019859,2]
[379512412,1755319831835,-187.46784789,0.00019874,2]
[379512413,1755319831843,-303.92789631,0.00019874,2]
[379512414,1755319831852,-689.16537351,0.000199,2]
[379512415,1755319831861,-1200.0,0.00019973,2]
[379512416,1755319831870,-500.0,0.00019974,2]
[379512417,1755319831880,-150.0,0.00020159,2]
[379512418,1755319831889,-227.115019,0.00020187,2]
[379512419,1755319831898,-372.392073,0.00020365,2]
[379512420,1755319831906,-689.16537329,0.00020408,2]
[379512421,1755319831916,-197.0,0.00020914,2]
[379512422,1755319831926,-300.0,0.00020914,2]
[379512423,1755319831937,-300.0,0.00020914,2]
[379512425,1755319831946,-300.0,0.00020914,2]
[379512426,1755319831955,-300.0,0.00020914,2]
[379512427,1755319831964,-689.16537329,0.00020916,2]
[379512428,1755319831975,-500.0,0.00021025,2]
[379512429,1755319831983,-689.16537329,0.00021424,2]
[379512430,1755319831993,-500.0,0.00021816,2]
[379512431,1755319832002,-446.88270963,0.00021817,2]
[379512432,1755319832011,-209.12004873,0.00021817,2]
[379512433,1755319832020,-18995.37957356,0.000219,2]
[379512434,1755319832030,-505.31879326,0.00021917,3]
[379512435,1755319832039,-460.0,0.00021917,3]
[379512436,1755319832048,-460.0,0.00021917,3]
[379512437,1755319832058,-460.71435315,0.00021917,3]
[379512438,1755319832067,-480.0,0.00021917,3]
[379512439,1755319832076,-480.0,0.00021917,3]
[379512440,1755319832086,-520.55445531,0.00021917,3]
[379512441,1755319832095,-480.0,0.00021917,3]
[379512442,1755319832103,-480.0,0.00021917,3]
[379512443,1755319832112,-460.89828818,0.00021917,3]
[379512444,1755319832121,-480.0,0.00021917,3]
[379512445,1755319832131,-460.0,0.00021917,3]
[379512446,1755319832140,-480.0,0.00021917,3]
[379512447,1755319832149,-460.0,0.00021917,3]
[379512448,1755319832158,-460.0,0.00021917,3]
[379512449,1755319832167,-480.0,0.00021917,3]
[379512450,1755319832176,-461.05729129,0.00021917,3]
[379512451,1755319832185,-460.0,0.00021917,3]
[379512452,1755319832194,-480.0,0.00021917,3]
[379512453,1755319832203,-460.0,0.00021917,3]
[379512454,1755319832212,-460.0,0.00021917,3]
[379512455,1755319832221,-460.0,0.00021917,3]
[379512456,1755319832231,-480.0,0.00021917,3]
[379512457,1755319832240,-480.0,0.00021917,3]
[379512458,1755319832249,-460.0,0.00021917,3]
[379512459,1755319832258,-480.0,0.00021917,3]
[379512460,1755319832267,-480.0,0.00021917,3]
[379512461,1755319832275,-480.0,0.00021917,3]
[379512462,1755319832286,-461.13055352,0.00021917,3]
[379512463,1755319832295,-480.0,0.00021917,3]
[379512464,1755319832304,-480.0,0.00021917,3]
[379512465,1755319832313,-261.99092507,0.00021917,3]
[379512466,1755319832329,-209.63811212,0.00021917,3]
[379512471,1755319832513,-277.11280651,0.00021917,3]
[379512472,1755319832522,-480.0,0.00021917,3]
[379512473,1755319832531,-595.44421572,0.00021917,3]
[379512474,1755319832540,-460.0,0.00021917,3]
[379512475,1755319832549,-495.77095871,0.00021917,3]
[379512476,1755319832559,-480.0,0.00021917,3]
[379512477,1755319832568,-480.0,0.00021917,3]
[379512478,1755319832577,-460.0,0.00021917,3]
[379512479,1755319832586,-438.46488179,0.00021917,3]
[379512480,1755319832595,-328.32167522,0.00021917,3]
[379512481,1755319832604,-480.0,0.00021917,3]
[379512482,1755319832613,-407.34565551,0.00021917,3]
[379512483,1755319832624,-72.65434449,0.00021917,3]
[379512484,1755319832634,-460.0,0.00021917,3]
[379512485,1755319832643,-332.79052679,0.00021917,3]
[379512486,1755319832655,-39.33229958,0.00021917,3]
[379512487,1755319832664,-261.12346706,0.00021917,3]
[379512488,1755319832675,-218.87653294,0.00021917,3]
[379512489,1755319832684,-480.0,0.00021917,3]
[379512490,1755319832693,-480.0,0.00021917,3]
[379512491,1755319832703,-480.0,0.00021917,3]
[379512492,1755319832713,-480.0,0.00021917,3]
[379512493,1755319832723,-417.00254486,0.00021917,3]
[379512783,1755319837802,-62.99745514,0.00021917,3]
[379512784,1755319837812,-480.0,0.00021917,3]
[379512785,1755319837821,-480.0,0.00021917,3]
[379512786,1755319837830,-480.0,0.00021917,3]
[379512787,1755319837838,-460.0,0.00021917,3]
[379512788,1755319837847,-381.73877861,0.00021917,3]
[379512789,1755319837859,-98.26122139,0.00021917,3]
[379512790,1755319837868,-460.0,0.00021917,3]
[379512791,1755319837878,-460.0,0.00021917,3]
[379512792,1755319837887,-480.0,0.00021917,3]
[379512793,1755319837896,-480.0,0.00021917,3]
[379512794,1755319837905,-460.0,0.00021917,3]
[379512795,1755319837914,-460.0,0.00021917,3]
[379512796,1755319837924,-460.0,0.00021917,3]
[379512797,1755319837933,-480.0,0.00021917,3]
[379512798,1755319837946,-426.74970796,0.00021917,3]
[379512799,1755319837957,-53.25029204,0.00021917,3]
[379512800,1755319837967,-460.0,0.00021917,3]
[379512801,1755319837976,-480.0,0.00021917,3]
[379512802,1755319837986,-595.06413648,0.00021917,3]
[379512803,1755319837995,-502.31140801,0.00021917,3]
[379512804,1755319838004,-378.31935691,0.00021917,3]
[379512805,1755319838015,-480.0,0.00021917,3]
[379512806,1755319838025,-480.0,0.00021917,3]
[379512807,1755319838034,-480.0,0.00021917,3]
[379512808,1755319838044,-460.0,0.00021917,3]
[379512809,1755319838053,-480.0,0.00021917,3]
[379512810,1755319838062,-480.0,0.00021917,3]
[379512811,1755319838072,-480.0,0.00021917,3]
[379512812,1755319838081,-460.0,0.00021917,3]
[379512813,1755319838090,-480.0,0.00021917,3]
[379512814,1755319838099,-480.0,0.00021917,3]
[379512815,1755319838109,-480.0,0.00021917,3]
[379512816,1755319838118,-480.0,0.00021917,3]
[379512817,1755319838127,-480.0,0.00021917,3]
[379512818,1755319838136,-460.0,0.00021917,3]
[379512819,1755319838145,-486.05308975,0.00021917,3]
[379512820,1755319838154,-480.0,0.00021917,3]
[379512821,1755319838164,-480.0,0.00021917,3]
[379512822,1755319838173,-480.0,0.00021917,3]
[379512823,1755319838182,-500.0,0.00021917,3]
[379512824,1755319838191,-480.0,0.00021917,3]
[379512825,1755319838201,-480.0,0.00021917,3]
[379512826,1755319838210,-84.22975561,0.00021917,3]
[379512829,1755319839728,-258.22,0.00021917,3]
[379512830,1755319839740,-137.55024439,0.00021917,3]
[379512831,1755319839749,-164.83075563,0.00021917,3]
[379512832,1755319839783,-315.16924437,0.00021917,3]
[379512833,1755319839792,-187.8426396,0.00021917,3]
[379512834,1755319839847,-272.1573604,0.00021917,3]
[379512835,1755319839856,-335.6929231,0.00021917,3]
[379513094,1755319843042,-4794.01629907,0.00021698,2]
[379520697,1755320282814,215.329395,0.00013699,2]
[379520713,1755320747095,-325.03386162,0.00019406,2]
[379520718,1755320841074,-943.24569852,0.00019212,2]
[379520719,1755320844077,-573.54647315,0.00019212,2]
[379520720,1755320848074,-3483.20782833,0.00019212,2]
[379520721,1755320848095,-165.95780041,0.000198,2]
[379520722,1755320848118,-597.27665689,0.000199,2]
[379520723,1755320848139,-215.329395,0.00020187,2]
[379520724,1755320848160,-186.196036,0.00020315,2]
[379520725,1755320848183,-165.37011729,0.00020408,2]
[379520781,1755321032038,-571.85509777,0.000199,2]
[379520783,1755321032048,-500.0,0.000199,2]
[379520785,1755321032058,-77.96069447,0.00020204,2]
[379520787,1755321032070,-4922.03930553,0.00020204,2]
[379520789,1755321032080,-571.85509771,0.00020408,2]
[379520791,1755321032090,-571.85509771,0.00020916,2]
[379520793,1755321032104,-1000.0,0.00020996,2]
[379520795,1755321032113,-1200.0,0.00021423,2]
[379520797,1755321032123,-571.85509771,0.00021424,2]
[379520799,1755321032134,-159.73834537,0.0002169,5]
[379520801,1755321032144,-2199.23250255,0.0002179,2]
[379520802,1755321032154,-1108.0,0.00021799,2]
[379520803,1755321032163,-300.0,0.00021799,2]
[379520804,1755321032173,-300.0,0.00021799,2]
[379520805,1755321032183,-300.0,0.00021799,2]
[379520806,1755321032192,-151.5638422,0.00021803,2]
[379520807,1755321032201,-151.0,0.00021803,2]
[379520808,1755321032210,-151.0,0.00021803,2]
[379520809,1755321032221,-173.08443572,0.00021803,2]
[379520811,1755321032230,-500.0,0.00021803,2]
[379520813,1755321032242,-500.0,0.00021803,2]
[379520815,1755321032252,-500.0,0.00021803,2]
[379520817,1755321032261,-500.0,0.00021803,2]
[379520819,1755321032270,-500.0,0.00021803,2]
[379520821,1755321032281,-500.0,0.00021803,2]
[379520823,1755321032290,-500.0,0.00021803,2]
[379520825,1755321032300,-151.0,0.00021803,2]
[379520827,1755321032310,-500.0,0.00021803,2]
[379520829,1755321032319,-151.0,0.00021803,2]
[379520831,1755321032328,-500.0,0.00021803,2]
[379520833,1755321032337,-151.0,0.00021803,2]
[379520835,1755321032346,-500.0,0.00021803,2]
[379520837,1755321032355,-151.0,0.00021803,2]
[379520839,1755321032365,-500.0,0.00021803,2]
[379520841,1755321032375,-469.718066,0.00021803,2]
[379520843,1755321032388,-151.0,0.00021803,2]
[379520846,1755321032401,-500.0,0.00021803,2]
[379520848,1755321032414,-151.0,0.00021803,2]
[379520850,1755321032428,-500.0,0.00021803,2]
[379520853,1755321032439,-151.0,0.00021803,2]
[379520855,1755321032450,-500.0,0.00021803,2]
[379520857,1755321032463,-500.0,0.00021803,2]
[379520859,1755321032475,-151.0,0.00021803,2]
[379520862,1755321032488,-500.0,0.00021803,2]
[379520864,1755321032501,-151.0,0.00021803,2]
[379520866,1755321032513,-500.0,0.00021803,2]
[379520868,1755321032524,-151.0,0.00021803,2]
[379520870,1755321032538,-151.0,0.00021803,2]
[379520873,1755321032553,-151.0,0.00021803,2]
[379520875,1755321032567,-151.0,0.00021803,2]
[379520877,1755321032578,-151.0,0.00021803,2]
[379520879,1755321032590,-151.0,0.00021803,2]
[379520881,1755321032601,-151.0,0.00021803,2]
[379520884,1755321032612,-151.0,0.00021803,2]
[379520886,1755321032624,-5991.10336521,0.00021803,2]
[379520888,1755321032636,-500.0,0.00021814,2]
[379520890,1755321032649,-274.53139468,0.00021814,2]
[379520892,1755321032660,-500.0,0.00021814,2]
[379520895,1755321032671,-500.0,0.00021814,2]
[379520897,1755321032682,-515.80422355,0.00021814,2]
[379520899,1755321032692,-500.0,0.00021814,2]
[379520901,1755321032704,-500.0,0.00021814,2]
[379520903,1755321032716,-500.0,0.00021814,2]
[379520905,1755321032728,-453.49370304,0.00021814,2]
[379520908,1755321032740,-435.26606674,0.00021814,2]
[379520910,1755321032753,-500.0,0.00021814,2]
[379520912,1755321032765,-500.0,0.00021814,2]
[379520914,1755321032777,-500.0,0.00021814,2]
[379520917,1755321032791,-500.0,0.00021814,2]
[379520919,1755321032802,-500.0,0.00021814,2]
[379520921,1755321032816,-500.0,0.00021814,2]
[379520924,1755321032826,-500.0,0.00021815,2]
[379520926,1755321032844,-2759.12131358,0.00021817,2]
[379520928,1755321032861,-3154.77667441,0.00021817,2]
[379521003,1755321038410,-435.0,0.00019701,2]
[379521004,1755321038449,-4565.0,0.00019701,2]
[379521005,1755321038459,-1091.6505749,0.00021817,2]
[379521006,1755321038469,-20286.67566272,0.00021817,3]
[379521007,1755321038478,-405.83934014,0.00021817,2]
[379521008,1755321038488,-546.60600325,0.00021817,2]
[379521009,1755321038497,-4579.09803223,0.00021917,2]
[379521010,1755321038507,-500.0,0.00021917,3]
[379521011,1755321038516,-480.0,0.00021917,3]
[379521012,1755321038525,-480.0,0.00021917,3]
[379521013,1755321038535,-480.0,0.00021917,3]
[379521014,1755321038544,-480.0,0.00021917,3]
[379521015,1755321038553,-480.0,0.00021917,3]
[379521016,1755321038562,-460.0,0.00021917,3]
[379521017,1755321038572,-480.0,0.00021917,3]
[379521018,1755321038581,-480.0,0.00021917,3]
[379521019,1755321038591,-480.0,0.00021917,3]
[379521020,1755321038601,-500.0,0.00021917,3]
[379521021,1755321038614,-502.26462757,0.00021917,3]
[379521022,1755321038624,-480.0,0.00021917,3]
[379521023,1755321038635,-440.0,0.00021917,3]
[379521024,1755321038644,-480.0,0.00021917,3]
[379521025,1755321038654,-480.0,0.00021917,3]
[379521026,1755321038663,-480.0,0.00021917,3]
[379521027,1755321038672,-480.0,0.00021917,3]
[379521028,1755321038682,-480.0,0.00021917,3]
[379521029,1755321038692,-480.0,0.00021917,3]
[379521030,1755321038703,-480.0,0.00021917,3]
[379521031,1755321038712,-579.01632106,0.00021917,3]
[379521032,1755321038721,-480.0,0.00021917,3]
[379521033,1755321038730,-480.0,0.00021917,3]
[379521034,1755321038740,-480.0,0.00021917,3]
[379521035,1755321038749,-432.65874413,0.00021917,3]
[379521036,1755321038759,-480.0,0.00021917,3]
[379521037,1755321038768,-480.0,0.00021917,3]
[379521038,1755321038778,-480.0,0.00021917,3]
[379521039,1755321038788,-167.02097705,0.00021917,3]
[379521040,1755321038797,-460.3305175,0.00021917,3]
[379521041,1755321038806,-460.76706976,0.00021917,3]
[379521042,1755321038816,-480.0,0.00021917,3]
[379521043,1755321038825,-461.74482411,0.00021917,3]
[379521044,1755321038835,-480.0,0.00021917,3]
[379521045,1755321038845,-480.0,0.00021917,3]
[379521046,1755321038855,-480.0,0.00021917,3]
[379521047,1755321038865,-480.0,0.00021917,3]
[379521048,1755321038875,-480.0,0.00021917,3]
[379521049,1755321038884,-451.33064805,0.00021917,3]
[379521050,1755321038895,-480.0,0.00021917,3]
[379521052,1755321038904,-480.0,0.00021917,3]
[379521053,1755321038914,-460.0,0.00021917,3]
[379521054,1755321038924,-461.13987459,0.00021917,3]
[379521055,1755321038933,-480.0,0.00021917,3]
[379521056,1755321038942,-480.0,0.00021917,3]
[379521057,1755321038952,-460.0,0.00021917,3]
[379521058,1755321038961,-480.0,0.00021917,3]
[379521059,1755321038970,-500.0,0.00021917,3]
[379521060,1755321038979,-480.0,0.00021917,3]
[379521061,1755321038989,-480.0,0.00021917,3]
[379521062,1755321038998,-480.0,0.00021917,3]
[379521063,1755321039007,-480.0,0.00021917,3]
[379521064,1755321039016,-480.0,0.00021917,3]
[379521065,1755321039025,-480.0,0.00021917,3]
[379521066,1755321039034,-480.0,0.00021917,3]
[379521067,1755321039044,-480.0,0.00021917,3]
[379521068,1755321039053,-480.0,0.00021917,3]
[379521069,1755321039063,-480.0,0.00021917,3]
[379521070,1755321039072,-480.0,0.00021917,3]
[379521071,1755321039084,-480.0,0.00021917,3]
[379521072,1755321039094,-467.8024199,0.00021917,3]
[379521073,1755321039104,-480.0,0.00021917,3]
[379521074,1755321039114,-480.0,0.00021917,3]
[379521075,1755321039123,-480.0,0.00021917,3]
[379521076,1755321039134,-480.0,0.00021917,3]
[379521077,1755321039148,-480.0,0.00021917,3]
[379521078,1755321039158,-480.0,0.00021917,3]
[379521079,1755321039167,-460.0,0.00021917,3]
[379521080,1755321039176,-480.0,0.00021917,3]
[379521081,1755321039186,-480.0,0.00021917,3]
[379521082,1755321039195,-480.0,0.00021917,3]
[379521083,1755321039204,-480.0,0.00021917,3]
[379521084,1755321039213,-480.0,0.00021917,3]
[379521085,1755321039222,-480.0,0.00021917,3]
[379521086,1755321039231,-468.17852833,0.00021917,3]
[379521087,1755321039242,-480.0,0.00021917,3]
[379521088,1755321039253,-480.0,0.00021917,3]
[379521089,1755321039262,-480.0,0.00021917,3]
[379521090,1755321039271,-480.0,0.00021917,3]
[379521091,1755321039280,-460.0,0.00021917,3]
[379521092,1755321039290,-480.0,0.00021917,3]
[379521093,1755321039299,-480.0,0.00021917,3]
[379521094,1755321039308,-480.0,0.00021917,3]
[379521095,1755321039318,-480.0,0.00021917,3]
[379521096,1755321039328,-480.0,0.00021917,3]
[379521097,1755321039338,-480.0,0.00021917,3]
[379521098,1755321039347,-460.0,0.00021917,3]
[379521099,1755321039356,-480.0,0.00021917,3]
[379521100,1755321039366,-282.36515899,0.00021917,3]
[379521101,1755321039375,-480.0,0.00021917,3]
[379521102,1755321039384,-480.0,0.00021917,3]
[379521103,1755321039393,-553.31,0.00021917,3]
[379521104,1755321039403,-480.0,0.00021917,3]
[379521105,1755321039412,-480.0,0.00021917,3]
[379521106,1755321039421,-480.0,0.00021917,3]
[379521107,1755321039430,-480.0,0.00021917,3]
[379521108,1755321039440,-480.0,0.00021917,3]
[379521109,1755321039449,-480.0,0.00021917,3]
[379521110,1755321039459,-341.06768206,0.00021917,3]
[379521111,1755321039468,-408.58343501,0.00021917,3]
[379521112,1755321039477,-462.06785248,0.00021917,3]
[379521113,1755321039486,-464.13650722,0.00021917,3]
[379521114,1755321039496,-480.0,0.00021917,3]
[379521115,1755321039505,-480.0,0.00021917,3]
[379521116,1755321039515,-480.0,0.00021917,3]
[379521117,1755321039524,-460.78657686,0.00021917,3]
[379521118,1755321039533,-480.0,0.00021917,3]
[379521119,1755321039543,-480.0,0.00021917,3]
[379521120,1755321039553,-480.0,0.00021917,3]
[379521121,1755321039563,-480.0,0.00021917,3]
[379521122,1755321039572,-480.0,0.00021917,3]
[379521123,1755321039582,-480.0,0.00021917,3]
[379521125,1755321039591,-480.0,0.00021917,3]
[379521127,1755321039601,-480.0,0.00021917,3]
[379521128,1755321039611,-480.0,0.00021917,3]
[379521129,1755321039620,-480.0,0.00021917,3]
[379521130,1755321039629,-283.34342489,0.00021917,3]
[379521131,1755321039639,-480.0,0.00021917,3]
[379521133,1755321039648,-480.0,0.00021917,3]
[379521135,1755321039657,-460.0,0.00021917,3]
[379521137,1755321039667,-460.0,0.00021917,3]
[379521139,1755321039676,-460.0,0.00021917,3]
[379521141,1755321039686,-460.0,0.00021917,3]
[379521143,1755321039695,-460.0,0.00021917,3]